fUST/lending_fUST_20250530
["ID","MTS","AMOUNT","RATE_DAILY","PERIOD"]
[363167855,1748607042318,-430.0,0.00019178,2]
[363167858,1748607042328,-430.0,0.00019178,2]
[363167860,1748607042338,-430.0,0.00019178,2]
[363167862,1748607042348,-732.98,0.00019178,2]
[363167864,1748607042357,-565.33,0.00019178,2]
[363167865,1748607042366,-5800.49,0.00019178,2]
[363167867,1748607042376,-430.0,0.00019178,2]
[363167869,1748607042387,-1648.24,0.00019178,2]
[363167871,1748607042397,-728.83,0.00019178,2]
[363167874,1748607042410,-841.69,0.00019178,2]
[363167876,1748607042421,-430.0,0.00019178,2]
[363167877,1748607042430,-790.45,0.00019178,2]
[363167879,1748607042440,-430.0,0.00019178,2]
[363167881,1748607042449,-856.74,0.00019178,2]
[363167884,1748607042459,-6925.2,0.00019178,2]
[363167887,1748607042468,-1265.56,0.00019178,2]
[363167890,1748607042477,-430.0,0.00019178,2]
[363167892,1748607042486,-1120.39,0.00019178,2]
[363167895,1748607042496,-493.22,0.00019178,2]
[363167899,1748607042506,-1572.47,0.00019178,2]
[363167902,1748607042516,-1019.01,0.00019178,2]
[363167906,1748607042526,-803.06,0.00019178,2]
[363167908,1748607042535,-1055.08,0.00019178,2]
[363167910,1748607042544,-430.0,0.00019178,2]
[363167912,1748607042554,-1340.88,0.00019178,2]
[363167915,1748607042563,-430.0,0.00019178,2]
[363167918,1748607042572,-1771.8,0.00019178,2]
[363167921,1748607042582,-583.48,0.00019178,2]
[363167923,1748607042592,-487.26,0.00019178,2]
[363167926,1748607042602,-430.0,0.00019178,2]
[363167928,1748607042611,-430.0,0.00019178,2]
[363167930,1748607042621,-430.0,0.00019178,2]
[363167931,1748607042631,-430.0,0.00019178,2]
[363167932,1748607042643,-430.0,0.00019178,2]
[363167933,1748607042653,-430.0,0.00019178,2]
[363167934,1748607042666,-519.44,0.00019178,2]
[363167935,1748607042680,-430.0,0.00019178,2]
[363167937,1748607042691,-2450.15,0.00019178,2]
[363167939,1748607042701,-756.08,0.00019178,2]
[363167941,1748607042712,-1086.21,0.00019178,2]
[363167943,1748607042722,-4236.23,0.00019178,2]
[363167945,1748607042732,-504.19,0.00019178,2]
[363167947,1748607042743,-1169.9,0.00019178,2]
[363167948,1748607042754,-430.0,0.00019178,2]
[363167949,1748607042764,-430.0,0.00019178,2]
[363167950,1748607042774,-5672.81,0.00019178,2]
[363167951,1748607042784,-3043.99,0.00019178,2]
[363167952,1748607042794,-430.0,0.00019178,2]
[363167954,1748607042804,-430.0,0.00019178,2]
[363167955,1748607042814,-430.0,0.00019178,2]
[363167957,1748607042825,-592.37,0.00019178,2]
[363167959,1748607042835,-1267.68,0.00019178,2]
[363167961,1748607042845,-2689.09,0.00019178,2]
[363167963,1748607042854,-430.0,0.00019178,2]
[363167965,1748607042864,-806.36,0.00019178,2]
[363167967,1748607042875,-1881.75,0.00019178,2]
[363167969,1748607042886,-430.0,0.00019178,2]
[363167971,1748607042896,-3585.96,0.00019178,2]
[363167973,1748607042910,-430.0,0.00019178,2]
[363167975,1748607042919,-494.98,0.00019178,2]
[363167977,1748607042930,-430.0,0.00019178,2]
[363167978,1748607042940,-430.0,0.00019178,2]
[363167980,1748607042950,-2410.3,0.00019178,2]
[363167982,1748607042960,-727.46,0.00019178,2]
[363167984,1748607042969,-785.31,0.00019178,2]
[363167986,1748607042979,-430.0,0.00019178,2]
[363167988,1748607042989,-430.0,0.00019178,2]
[363167990,1748607042999,-430.0,0.00019178,2]
[363167992,1748607043009,-954.24,0.00019178,2]
[363167994,1748607043018,-1548.78,0.00019178,2]
[363167996,1748607043028,-430.0,0.00019178,2]
[363167998,1748607043038,-430.0,0.00019178,2]
[363168000,1748607043048,-1745.52,0.00019178,2]
[363168003,1748607043058,-2416.8,0.00019178,2]
[363168004,1748607043068,-430.0,0.00019178,2]
[363168007,1748607043078,-151.0,0.00019178,2]
[363168008,1748607043089,-188.125086,0.00019178,2]
[363168010,1748607043099,-3000.0,0.0001918,2]
[363168013,1748607043109,-3000.0,0.0001919,2]
[363168014,1748607043119,-3000.0,0.000192,2]
[363168016,1748607043128,-500.0,0.00019205,2]
[363168019,1748607043138,-3000.0,0.0001921,2]
[363168020,1748607043147,-586.393701,0.0001921,2]
[363168022,1748607043161,-3000.0,0.0001922,2]
[363168025,1748607043171,-3000.0,0.0001923,2]
[363168027,1748607043181,-500.0,0.00019232,2]
[363168028,1748607043190,-156.587,0.00019233,2]
[363168031,1748607043200,-3000.0,0.0001924,2]
[363168033,1748607043211,-221.46553664,0.00019247,2]
[363168036,1748607043221,-3000.0,0.0001925,2]
[363168037,1748607043231,-519.70768548,0.0001926,2]
[363168041,1748607043241,-3000.0,0.0001926,2]
[363168045,1748607043252,-3000.0,0.0001927,2]
[363168048,1748607043263,-3000.0,0.0001928,2]
[363168050,1748607043273,-162.380719,0.00019288,2]
[363168052,1748607043282,-3000.0,0.0001929,2]
[363168054,1748607043292,-3000.0,0.000193,2]
[363168056,1748607043301,-3000.0,0.0001931,2]
[363168058,1748607043311,-3000.0,0.0001932,2]
[363168059,1748607043320,-3000.0,0.0001933,2]
[363168062,1748607043330,-3000.0,0.0001934,2]
[363168063,1748607043340,-168.3888056,0.00019343,2]
[363168065,1748607043351,-3000.0,0.0001935,2]
[363168067,1748607043360,-3000.0,0.0001936,2]
[363168069,1748607043371,-3000.0,0.0001937,2]
[363168071,1748607043380,-3000.0,0.0001938,2]
[363168073,1748607043390,-154.30507975,0.00019387,2]
[363168075,1748607043399,-207.4,0.00019387,2]
[363168077,1748607043411,-5000.0,0.00019387,2]
[363168079,1748607043423,-3000.0,0.0001939,2]
[363168081,1748607043432,-174.61919141,0.00019398,2]
[363168083,1748607043442,-3000.0,0.000194,2]
[363168085,1748607043451,-3000.0,0.0001941,2]
[363168087,1748607043461,-3000.0,0.0001942,2]
[363168089,1748607043471,-3000.0,0.0001943,2]
[363168091,1748607043481,-3000.0,0.0001944,2]
[363168093,1748607043490,-3000.0,0.0001945,2]
[363168095,1748607043500,-430.0,0.00019452,2]
[363168097,1748607043509,-430.0,0.00019452,2]
[363168099,1748607043519,-430.0,0.00019452,2]
[363168101,1748607043528,-465.76,0.00019452,2]
[363168103,1748607043538,-430.0,0.00019452,2]
[363168105,1748607043548,-430.0,0.00019452,2]
[363168107,1748607043557,-430.0,0.00019452,2]
[363168109,1748607043567,-430.0,0.00019452,2]
[363168111,1748607043577,-575.8,0.00019452,2]
[363168113,1748607043586,-430.0,0.00019452,2]
[363168115,1748607043595,-430.0,0.00019452,2]
[363168117,1748607043605,-430.0,0.00019452,2]
[363168119,1748607043615,-430.0,0.00019452,2]
[363168121,1748607043623,-446.67,0.00019452,2]
[363168123,1748607043633,-502.38646509,0.00019452,2]
[363168125,1748607043643,-430.0,0.00019452,2]
[363168126,1748607043659,-430.0,0.00019452,2]
[363168128,1748607043669,-430.0,0.00019452,2]
[363168130,1748607043678,-430.0,0.00019452,2]
[363168132,1748607043689,-430.0,0.00019452,2]
[363168134,1748607043699,-430.0,0.00019452,2]
[363168136,1748607043708,-430.0,0.00019452,2]
[363168138,1748607043718,-430.0,0.00019452,2]
[363168140,1748607043729,-430.0,0.00019452,2]
[363168142,1748607043739,-430.0,0.00019452,2]
[363168145,1748607043747,-254.86823981,0.00019452,2]
[363168147,1748607043757,-193.17523759,0.00019452,2]
[363168150,1748607043765,-430.0,0.00019452,2]
[363168153,1748607043775,-336.63983854,0.00019452,2]
[363168155,1748607043783,-430.0,0.00019452,2]
[363168157,1748607043792,-430.0,0.00019452,2]
[363168159,1748607043802,-914.81,0.00019452,2]
[363168161,1748607043811,-430.0,0.00019452,2]
[363168163,1748607043821,-430.0,0.00019452,2]
[363168165,1748607043831,-791.81,0.00019452,2]
[363168167,1748607043842,-430.0,0.00019452,2]
[363168169,1748607043851,-430.0,0.00019452,2]
[363168171,1748607043861,-430.0,0.00019452,2]
[363168173,1748607043871,-737.36,0.00019452,2]
[363168175,1748607043881,-430.0,0.00019452,2]
[363168177,1748607043890,-430.0,0.00019452,2]
[363168179,1748607043899,-430.0,0.00019452,2]
[363168181,1748607043911,-448.13,0.00019452,2]
[363168183,1748607043921,-430.0,0.00019452,2]
[363168185,1748607043930,-273.80068983,0.00019452,2]
[363168187,1748607043940,-430.0,0.00019452,2]
[363168189,1748607043950,-430.0,0.00019452,2]
[363168191,1748607043960,-430.0,0.00019452,2]
[363168193,1748607043970,-396.06876834,0.00019452,2]
[363168195,1748607043979,-1376.79,0.00019452,2]
[363168197,1748607043988,-430.0,0.00019452,2]
[363168199,1748607043998,-430.0,0.00019452,2]
[363168201,1748607044008,-430.0,0.00019452,2]
[363168203,1748607044018,-430.0,0.00019452,2]
[363168205,1748607044027,-430.0,0.00019452,2]
[363168207,1748607044037,-430.0,0.00019452,2]
[363168209,1748607044046,-430.0,0.00019452,2]
[363168211,1748607044056,-1637.02,0.00019452,2]
[363168213,1748607044066,-1117.48,0.00019452,2]
[363168215,1748607044076,-430.0,0.00019452,2]
[363168217,1748607044085,-565.89121644,0.00019452,2]
[363168219,1748607044095,-430.0,0.00019452,2]
[363168221,1748607044104,-430.0,0.00019452,2]
[363168223,1748607044114,-603.03,0.00019452,2]
[363168225,1748607044123,-642.83,0.00019452,2]
[363168227,1748607044132,-841.52,0.00019452,2]
[363168229,1748607044142,-505.79,0.00019452,2]
[363168231,1748607044151,-430.0,0.00019452,2]
[363168233,1748607044164,-430.0,0.00019452,2]
[363168235,1748607044174,-1005.77,0.00019452,2]
[363168237,1748607044183,-430.0,0.00019452,2]
[363168239,1748607044193,-635.95,0.00019452,2]
[363168241,1748607044203,-565.15,0.00019452,2]
[363168242,1748607044212,-430.0,0.00019452,2]
[363168244,1748607044222,-430.0,0.00019452,2]
[363168246,1748607044231,-430.0,0.00019452,2]
[363168248,1748607044241,-2763.35,0.00019452,2]
[363168250,1748607044251,-482.73,0.00019452,2]
[363168252,1748607044260,-7769.81,0.00019452,2]
[363168254,1748607044271,-430.0,0.00019452,2]
[363168256,1748607044281,-1959.9,0.00019452,2]
[363168258,1748607044290,-802.35,0.00019452,2]
[363168260,1748607044300,-430.0,0.00019452,2]
[363168262,1748607044311,-430.0,0.00019452,2]
[363168264,1748607044321,-4985.03,0.00019452,2]
[363168266,1748607044332,-430.0,0.00019452,2]
[363168268,1748607044342,-430.0,0.00019452,2]
[363168270,1748607044352,-430.0,0.00019452,2]
[363168272,1748607044361,-430.0,0.00019452,2]
[363168274,1748607044371,-732.98,0.00019452,2]
[363168276,1748607044381,-565.33,0.00019452,2]
[363168278,1748607044390,-5800.49,0.00019452,2]
[363168280,1748607044400,-430.0,0.00019452,2]
[363168282,1748607044414,-1648.24,0.00019452,2]
[363168284,1748607044427,-728.83,0.00019452,2]
[363168285,1748607044437,-841.69,0.00019452,2]
[363168287,1748607044446,-430.0,0.00019452,2]
[363168290,1748607044455,-790.45,0.00019452,2]
[363168291,1748607044464,-430.0,0.00019452,2]
[363168293,1748607044474,-856.74,0.00019452,2]
[363168296,1748607044483,-6925.2,0.00019452,2]
[363168298,1748607044492,-1265.56,0.00019452,2]
[363168299,1748607044502,-430.0,0.00019452,2]
[363168301,1748607044511,-1120.39,0.00019452,2]
[363168303,1748607044522,-493.22,0.00019452,2]
[363168305,1748607044533,-1572.47,0.00019452,2]
[363168307,1748607044543,-1019.01,0.00019452,2]
[363168309,1748607044553,-803.06,0.00019452,2]
[363168311,1748607044562,-1055.08,0.00019452,2]
[363168314,1748607044577,-430.0,0.00019452,2]
[363168315,1748607044587,-1340.88,0.00019452,2]
[363168318,1748607044597,-254.36756907,0.00019452,2]
[363168320,1748607044607,-1771.8,0.00019452,2]
[363168322,1748607044618,-583.48,0.00019452,2]
[363168323,1748607044627,-487.26,0.00019452,2]
[363168325,1748607044637,-430.0,0.00019452,2]
[363168327,1748607044647,-430.0,0.00019452,2]
[363168329,1748607044664,-430.0,0.00019452,2]
[363168331,1748607044679,-430.0,0.00019452,2]
[363168333,1748607044688,-430.0,0.00019452,2]
[363168335,1748607044698,-519.44,0.00019452,2]
[363168337,1748607044708,-2450.15,0.00019452,2]
[363168339,1748607044718,-756.08,0.00019452,2]
[363168341,1748607044728,-1086.21,0.00019452,2]
[363168344,1748607044738,-4236.23,0.00019452,2]
[363168345,1748607044749,-504.19,0.00019452,2]
[363168347,1748607044760,-1169.9,0.00019452,2]
[363168350,1748607044770,-512.97616701,0.00019452,2]
[363168351,1748607044780,-430.0,0.00019452,2]
[363168353,1748607044790,-5672.81,0.00019452,2]
[363168355,1748607044800,-3043.99,0.00019452,2]
[363168357,1748607044810,-430.0,0.00019452,2]
[363168360,1748607044819,-430.0,0.00019452,2]
[363168362,1748607044830,-430.0,0.00019452,2]
[363168363,1748607044839,-592.37,0.00019452,2]
[363168365,1748607044848,-1267.68,0.00019452,2]
[363168367,1748607044857,-2689.09,0.00019452,2]
[363168369,1748607044867,-484.01025371,0.00019452,2]
[363168371,1748607044876,-806.36,0.00019452,2]
[363168373,1748607044886,-1881.75,0.00019452,2]
[363168375,1748607044895,-430.0,0.00019452,2]
[363168377,1748607044904,-3585.96,0.00019452,2]
[363168379,1748607044918,-430.0,0.00019452,2]
[363168381,1748607044927,-494.98,0.00019452,2]
[363168383,1748607044936,-430.0,0.00019452,2]
[363168385,1748607044945,-430.0,0.00019452,2]
[363168387,1748607044953,-2410.3,0.00019452,2]
[363168389,1748607044963,-727.46,0.00019452,2]
[363168391,1748607044974,-785.31,0.00019452,2]
[363168393,1748607044985,-430.0,0.00019452,2]
[363168395,1748607044995,-430.0,0.00019452,2]
[363168397,1748607045005,-430.0,0.00019452,2]
[363168399,1748607045014,-954.24,0.00019452,2]
[363168401,1748607045023,-1548.78,0.00019452,2]
[363168403,1748607045033,-430.0,0.00019452,2]
[363168405,1748607045042,-430.0,0.00019452,2]
[363168407,1748607045051,-1745.52,0.00019452,2]
[363168409,1748607045060,-2416.8,0.00019452,2]
[363168411,1748607045069,-430.0,0.00019452,2]
[363168413,1748607045079,-181.08010149,0.00019453,2]
[363168415,1748607045089,-3000.0,0.0001946,2]
[363168417,1748607045099,-3000.0,0.0001947,2]
[363168419,1748607045108,-3000.0,0.0001948,2]
[363168421,1748607045118,-3000.0,0.0001949,2]
[363168423,1748607045128,-1238.55,0.000195,2]
[363168425,1748607045138,-3000.0,0.000195,2]
[363168427,1748607045148,-187.78006525,0.00019508,2]
[363168429,1748607045160,-3000.0,0.0001951,2]
[363168431,1748607045170,-3000.0,0.0001952,2]
[363168433,1748607045179,-3000.0,0.0001953,2]
[363168448,1748607045308,-3000.0,0.0001954,2]
[363168450,1748607045319,-3000.0,0.0001955,2]
[363168452,1748607045328,-3000.0,0.0001956,2]
[363168453,1748607045337,-194.72792766,0.00019563,2]
[363168454,1748607045347,-3000.0,0.0001957,2]
[363168455,1748607045356,-3000.0,0.0001958,2]
[363168456,1748607045366,-151.0,0.0001958,2]
[363168457,1748607045376,-152.449439,0.0001958,2]
[363168458,1748607045385,-151.0,0.0001958,2]
[363168460,1748607045395,-586.39370098,0.00019588,2]
[363168462,1748607045410,-3000.0,0.0001959,2]
[363168464,1748607045420,-152.148333,0.0001959,2]
[363168466,1748607045429,-151.0,0.0001959,2]
[363168468,1748607045438,-170.434326,0.0001959,2]
[363168469,1748607045448,-170.434326,0.0001959,2]
[363168470,1748607045457,-309.337456,0.0001959,2]
[363168472,1748607045467,-309.337456,0.0001959,2]
[363168474,1748607045476,-3000.0,0.000196,2]
[363168476,1748607045485,-151.0,0.000196,2]
[363168478,1748607045494,-151.0,0.000196,2]
[363168480,1748607045503,-151.0,0.000196,2]
[363168482,1748607045513,-151.0,0.000196,2]
[363168484,1748607045522,-151.0,0.000196,2]
[363168486,1748607045532,-153.138301,0.000196,2]
[363168489,1748607045542,-151.0,0.000196,2]
[363168491,1748607045551,-155.021781,0.000196,2]
[363168493,1748607045560,-225.082769,0.000196,2]
[363168495,1748607045570,-225.082769,0.000196,2]
[363168497,1748607045579,-151.0,0.000196,2]
[363168499,1748607045589,-151.0,0.000196,2]
[363168501,1748607045599,-740.997989,0.000196,2]
[363168503,1748607045608,-740.997989,0.000196,2]
[363168506,1748607045617,-3000.0,0.0001961,2]
[363168508,1748607045627,-201.93286099,0.00019618,2]
[363168510,1748607045637,-3000.0,0.0001962,2]
[363168512,1748607045648,-3000.0,0.0001963,2]
[363168514,1748607045665,-3000.0,0.0001964,2]
[363168516,1748607045674,-151.0,0.0001964,2]
[363168518,1748607045683,-151.0,0.0001964,2]
[363168520,1748607045694,-3000.0,0.0001965,2]
[363168522,1748607045703,-3000.0,0.0001966,2]
[363168525,1748607045713,-3000.0,0.0001967,2]
[363168527,1748607045724,-151.0,0.0001967,2]
[363168530,1748607045734,-306.4242624,0.00019671,2]
[363168532,1748607045743,-209.40437684,0.00019673,2]
[363168534,1748607045754,-3000.0,0.0001968,2]
[363168536,1748607045764,-4552.535088,0.0001969,2]
[363168538,1748607045773,-151.0,0.0001969,2]
[363168540,1748607045783,-151.0,0.0001969,2]
[363168542,1748607045793,-151.0,0.0001969,2]
[363168544,1748607045803,-165.366009,0.0001969,2]
[363168546,1748607045813,-165.366009,0.0001969,2]
[363168548,1748607045823,-151.0,0.0001969,2]
[363168550,1748607045835,-151.0,0.000197,2]
[363168552,1748607045847,-430.0,0.00019726,2]
[363168554,1748607045858,-151.0,0.00019726,2]
[363168556,1748607045868,-151.0,0.00019726,2]
[363168558,1748607045878,-151.0,0.00019726,2]
[363168560,1748607045890,-430.0,0.00019726,2]
[363168562,1748607045901,-465.76,0.00019726,2]
[363168564,1748607045917,-151.0,0.00019726,2]
[363168566,1748607045927,-151.0,0.00019726,2]
[363168568,1748607045937,-430.0,0.00019726,2]
[363168570,1748607045946,-265.198524,0.00019726,2]
[363168572,1748607045957,-151.0,0.00019726,2]
[363168574,1748607045967,-430.0,0.00019726,2]
[363168576,1748607045978,-151.0,0.00019726,2]
[363168578,1748607045988,-430.0,0.00019726,2]
[363168580,1748607045999,-151.0,0.00019726,2]
[363168582,1748607046009,-151.0,0.00019726,2]
[363168584,1748607046020,-151.56799,0.00019726,2]
[363168586,1748607046029,-151.0,0.00019726,2]
[363168588,1748607046040,-151.0,0.00019726,2]
[363168590,1748607046050,-283.888994,0.00019726,2]
[363168592,1748607046060,-151.0,0.00019726,2]
[363168594,1748607046070,-151.0,0.00019726,2]
[363168596,1748607046079,-205.301931,0.00019726,2]
[363168598,1748607046088,-205.301931,0.00019726,2]
[363168600,1748607046098,-430.0,0.00019726,2]
[363168602,1748607046107,-152.098582,0.00019726,2]
[363168604,1748607046116,-430.0,0.00019726,2]
[363168606,1748607046126,-430.0,0.00019726,2]
[363168608,1748607046136,-430.0,0.00019726,2]
[363168610,1748607046145,-446.67,0.00019726,2]
[363168612,1748607046155,-151.0,0.00019726,2]
[363168613,1748607046169,-430.0,0.00019726,2]
[363168616,1748607046179,-430.0,0.00019726,2]
[363168617,1748607046188,-264.123727,0.00019726,2]
[363168619,1748607046198,-264.123727,0.00019726,2]
[363168621,1748607046208,-430.0,0.00019726,2]
[363168624,1748607046217,-3071.773907,0.00019726,2]
[363168625,1748607046227,-3071.773907,0.00019726,2]
[363168628,1748607046236,-430.0,0.00019726,2]
[363168630,1748607046245,-430.0,0.00019726,2]
[363168631,1748607046254,-240.72,0.00019726,2]
[363168633,1748607046264,-410.72916472,0.00019726,2]
[363168636,1748607046273,-151.0,0.00019726,2]
[363168638,1748607046284,-151.0,0.00019726,2]
[363168640,1748607046294,-151.0,0.00019726,2]
[363168642,1748607046303,-430.0,0.00019726,2]
[363168644,1748607046312,-430.0,0.00019726,2]
[363168646,1748607046321,-914.81,0.00019726,2]
[363168648,1748607046331,-430.0,0.00019726,2]
[363168650,1748607046341,-375.81680347,0.00019726,2]
[363168652,1748607046350,-191.091639,0.00019726,2]
[363168654,1748607046360,-791.81,0.00019726,2]
[363168656,1748607046369,-191.091639,0.00019726,2]
[363168658,1748607046378,-151.0,0.00019726,2]
[363168660,1748607046388,-430.0,0.00019726,2]
[363168662,1748607046398,-430.0,0.00019726,2]
[363168664,1748607046411,-737.36,0.00019726,2]
[363168666,1748607046420,-491.56542967,0.00019726,2]
[363168668,1748607046430,-430.0,0.00019726,2]
[363168670,1748607046439,-430.0,0.00019726,2]
[363168672,1748607046449,-448.13,0.00019726,2]
[363168674,1748607046458,-430.0,0.00019726,2]
[363168676,1748607046467,-151.0,0.00019726,2]
[363168678,1748607046477,-430.0,0.00019726,2]
[363168680,1748607046486,-661.493652,0.00019726,2]
[363168682,1748607046495,-430.0,0.00019726,2]
[363168684,1748607046504,-661.493652,0.00019726,2]
[363168686,1748607046513,-430.0,0.00019726,2]
[363168688,1748607046522,-1376.79,0.00019726,2]
[363168690,1748607046531,-430.0,0.00019726,2]
[363168692,1748607046541,-151.0,0.00019726,2]
[363168694,1748607046549,-151.0,0.00019726,2]
[363168696,1748607046559,-153.86388,0.00019726,2]
[363168698,1748607046568,-151.0,0.00019726,2]
[363168700,1748607046578,-461.02113522,0.00019726,2]
[363168702,1748607046587,-430.0,0.00019726,2]
[363168704,1748607046597,-430.0,0.00019726,2]
[363168706,1748607046606,-151.0,0.00019726,2]
[363168708,1748607046615,-430.0,0.00019726,2]
[363168710,1748607046625,-1637.02,0.00019726,2]
[363168712,1748607046634,-1117.48,0.00019726,2]
[363168714,1748607046643,-430.0,0.00019726,2]
[363168716,1748607046654,-430.0,0.00019726,2]
[363168718,1748607046666,-430.0,0.00019726,2]
[363168720,1748607046678,-151.0,0.00019726,2]
[363168722,1748607046688,-603.03,0.00019726,2]
[363168724,1748607046698,-642.83,0.00019726,2]
[363168726,1748607046707,-841.52,0.00019726,2]
[363168728,1748607046717,-505.79,0.00019726,2]
[363168730,1748607046727,-430.0,0.00019726,2]
[363168732,1748607046737,-430.0,0.00019726,2]
[363168734,1748607046746,-1005.77,0.00019726,2]
[363168736,1748607046756,-430.0,0.00019726,2]
[363168738,1748607046766,-635.95,0.00019726,2]
[363168740,1748607046776,-565.15,0.00019726,2]
[363168742,1748607046785,-357.87887871,0.00019726,2]
[363168744,1748607046794,-244.75107337,0.00019726,2]
[363168746,1748607046804,-225.082769,0.00019726,2]
[363168748,1748607046813,-430.0,0.00019726,2]
[363168750,1748607046823,-225.082769,0.00019726,2]
[363168752,1748607046832,-2763.35,0.00019726,2]
[363168754,1748607046842,-482.73,0.00019726,2]
[363168756,1748607046851,-7769.81,0.00019726,2]
[363168758,1748607046861,-430.0,0.00019726,2]
[363168760,1748607046871,-1959.9,0.00019726,2]
[363168762,1748607046881,-802.35,0.00019726,2]
[363168764,1748607046891,-430.0,0.00019726,2]
[363168766,1748607046901,-430.0,0.00019726,2]
[363168768,1748607046914,-151.0,0.00019726,2]
[363168770,1748607046924,-190.868158,0.00019726,2]
[363168772,1748607046933,-4985.03,0.00019726,2]
[363168774,1748607046942,-430.0,0.00019726,2]
[363168776,1748607046951,-430.0,0.00019726,2]
[363168778,1748607046961,-241.47925003,0.00019726,2]
[363168780,1748607046970,-430.0,0.00019726,2]
[363168782,1748607046980,-732.98,0.00019726,2]
[363168784,1748607046990,-565.33,0.00019726,2]
[363168786,1748607046999,-5800.49,0.00019726,2]
[363168788,1748607047008,-430.0,0.00019726,2]
[363168790,1748607047018,-1648.24,0.00019726,2]
[363168792,1748607047027,-728.83,0.00019726,2]
[363168794,1748607047037,-841.69,0.00019726,2]
[363168796,1748607047047,-430.0,0.00019726,2]
[363168798,1748607047056,-790.45,0.00019726,2]
[363168800,1748607047066,-430.0,0.00019726,2]
[363168802,1748607047076,-856.74,0.00019726,2]
[363168804,1748607047085,-6925.2,0.00019726,2]
[363168806,1748607047094,-1265.56,0.00019726,2]
[363168808,1748607047105,-430.0,0.00019726,2]
[363168810,1748607047115,-1120.39,0.00019726,2]
[363168812,1748607047125,-493.22,0.00019726,2]
[363168814,1748607047135,-1572.47,0.00019726,2]
[363168816,1748607047144,-1019.01,0.00019726,2]
[363168818,1748607047153,-803.06,0.00019726,2]
[363168820,1748607047167,-151.0,0.00019726,2]
[363168822,1748607047177,-1055.08,0.00019726,2]
[363168824,1748607047187,-430.0,0.00019726,2]
[363168826,1748607047196,-1340.88,0.00019726,2]
[363168828,1748607047205,-1771.8,0.00019726,2]
[363168830,1748607047214,-583.48,0.00019726,2]
[363168832,1748607047225,-487.26,0.00019726,2]
[363168834,1748607047234,-430.0,0.00019726,2]
[363168836,1748607047244,-430.0,0.00019726,2]
[363168838,1748607047254,-430.0,0.00019726,2]
[363168840,1748607047263,-430.0,0.00019726,2]
[363168842,1748607047273,-519.44,0.00019726,2]
[363168844,1748607047282,-2450.15,0.00019726,2]
[363168846,1748607047292,-170.434326,0.00019726,2]
[363168848,1748607047302,-151.0,0.00019726,2]
[363168850,1748607047311,-756.08,0.00019726,2]
[363168852,1748607047320,-1086.21,0.00019726,2]
[363168854,1748607047330,-170.434326,0.00019726,2]
[363168856,1748607047340,-4236.23,0.00019726,2]
[363168859,1748607047350,-504.19,0.00019726,2]
[363168861,1748607047359,-1169.9,0.00019726,2]
[363168863,1748607047369,-430.0,0.00019726,2]
[363168865,1748607047380,-5672.81,0.00019726,2]
[363168867,1748607047389,-309.337456,0.00019726,2]
[363168869,1748607047398,-3043.99,0.00019726,2]